[Event "Late-Titled-Tuesday-Blitz-September-12-2023"]
[Site "Chess.com"]
[Date "2023.09.12"]
[Round "11"]
[White "Lennis93"]
[Black "Beca95"]
[Result "0-1"]
[WhiteElo "2716"]
[BlackElo "2953"]
[TimeControl "180+1"]
[EndTime "15:59:55 PDT"]
[Termination "Beca95 won by resignation"]

1. Nf3 {[%clk 0:03:00.9]} 1... Nf6 {[%clk 0:02:58.2]} 2. d4 {[%clk 0:03:01]}
2... e6 {[%clk 0:02:57.9]} 3. g3 {[%clk 0:03:01.2]} 3... c5 {[%clk 0:02:58.2]}
4. Bg2 {[%clk 0:03:01.8]} 4... cxd4 {[%clk 0:02:58.5]} 5. O-O {[%clk 0:03:00.9]}
5... d5 {[%clk 0:02:59.4]} 6. Nxd4 {[%clk 0:02:59.3]} 6... e5 {[%clk 0:02:59.7]}
7. Nb3 {[%clk 0:02:51.9]} 7... a5 {[%clk 0:02:57.7]} 8. c4 {[%clk 0:02:51.4]}
8... d4 {[%clk 0:02:51.5]} 9. Bg5 {[%clk 0:02:47.4]} 9... Nc6 {[%clk 0:02:49.5]}
10. N1d2 {[%clk 0:02:45.8]} 10... a4 {[%clk 0:02:48.9]} 11. Nc1 {[%clk
0:02:45.6]} 11... Be7 {[%clk 0:02:40.6]} 12. Nd3 {[%clk 0:02:45.8]} 12... O-O
{[%clk 0:02:35.4]} 13. Re1 {[%clk 0:02:00.6]} 13... h6 {[%clk 0:02:33.9]} 14.
Bxf6 {[%clk 0:02:00.2]} 14... Bxf6 {[%clk 0:02:34.8]} 15. Nc5 {[%clk 0:01:59.3]}
15... Qa5 {[%clk 0:02:29.3]} 16. Nce4 {[%clk 0:01:44.2]} 16... Be7 {[%clk
0:02:29.2]} 17. c5 {[%clk 0:01:44.7]} 17... Be6 {[%clk 0:02:28.3]} 18. Qc1
{[%clk 0:01:36.2]} 18... Qb5 {[%clk 0:02:22.2]} 19. b3 {[%clk 0:01:07.9]} 19...
axb3 {[%clk 0:02:21.7]} 20. axb3 {[%clk 0:01:07.5]} 20... Rxa1 {[%clk
0:02:20.8]} 21. Qxa1 {[%clk 0:01:07.1]} 21... Bxc5 {[%clk 0:02:17.6]} 22. Nxc5
{[%clk 0:01:03.4]} 22... Qxc5 {[%clk 0:02:18.5]} 23. Rc1 {[%clk 0:01:02.8]}
23... Qb5 {[%clk 0:02:14.2]} 24. Bf3 {[%clk 0:00:49.4]} 24... Bd5 {[%clk
0:01:56]} 25. Re1 {[%clk 0:00:27.5]} 25... Nb4 {[%clk 0:01:46.5]} 26. Qb1 {[%clk
0:00:23.7]} 26... f5 {[%clk 0:01:42.7]} 27. Nc4 {[%clk 0:00:21.6]} 27... e4
{[%clk 0:01:40]} 28. Bh5 {[%clk 0:00:21.2]} 28... Qc5 {[%clk 0:01:26]} 29. Rc1
{[%clk 0:00:20.2]} 29... Rc8 {[%clk 0:01:25.6]} 30. Qb2 {[%clk 0:00:18.3]} 30...
b5 {[%clk 0:01:24.4]} 31. Bg6 {[%clk 0:00:14.1]} 31... bxc4 {[%clk 0:01:24]} 32.
bxc4 {[%clk 0:00:14.2]} 32... Be6 {[%clk 0:01:24.2]} 33. g4 {[%clk 0:00:13.2]}
33... Nc6 {[%clk 0:01:21.9]} 34. gxf5 {[%clk 0:00:12.8]} 34... Bxf5 {[%clk
0:01:22.4]} 35. Bxf5 {[%clk 0:00:12.2]} 35... Qxf5 {[%clk 0:01:23.3]} 36. Qb6
{[%clk 0:00:12.4]} 36... d3 {[%clk 0:01:22.1]} 37. exd3 {[%clk 0:00:08.2]} 37...
exd3 {[%clk 0:01:23]} 38. Kf1 {[%clk 0:00:08.2]} 38... Ne5 {[%clk 0:01:22.3]}
39. Qe3 {[%clk 0:00:07.4]} 39... Ng4 {[%clk 0:01:21.5]} 40. Qg3 {[%clk
0:00:07.5]} 40... Rf8 {[%clk 0:01:18.8]} 41. c5 {[%clk 0:00:06]} 41... Nxf2
{[%clk 0:01:18.4]} 42. Kg2 {[%clk 0:00:05.9]} 42... Ne4 {[%clk 0:01:17.6]} 43.
Qe3 {[%clk 0:00:06.2]} 43... Qg4+ {[%clk 0:01:17.6]} 44. Kh1 {[%clk 0:00:05.5]}
44... Nf2+ {[%clk 0:01:18.3]} 45. Qxf2 {[%clk 0:00:05.5]} 45... Rxf2 {[%clk
0:01:19]} 0-1

[Event "Late-Titled-Tuesday-Blitz-September-12-2023"]
[Site "Chess.com"]
[Date "2023.09.12"]
[Round "11"]
[White "RIPOL"]
[Black "ahkashefi2800"]
[Result "0-1"]
[WhiteElo "2469"]
[BlackElo "2624"]
[TimeControl "180+1"]
[EndTime "15:59:58 PDT"]
[Termination "ahkashefi2800 won by resignation"]

1. d4 {[%clk 0:02:58.9]} 1... d5 {[%clk 0:02:53.2]} 2. c4 {[%clk 0:02:58]} 2...
c6 {[%clk 0:02:53.2]} 3. Nc3 {[%clk 0:02:56.7]} 3... Nf6 {[%clk 0:02:53.6]} 4.
cxd5 {[%clk 0:02:56.2]} 4... cxd5 {[%clk 0:02:50.2]} 5. Bf4 {[%clk 0:02:55.7]}
5... Nc6 {[%clk 0:02:51.1]} 6. e3 {[%clk 0:02:55]} 6... a6 {[%clk 0:02:52]} 7.
Rc1 {[%clk 0:02:53.7]} 7... Bg4 {[%clk 0:02:44.2]} 8. f3 {[%clk 0:02:52.2]} 8...
Bd7 {[%clk 0:02:41]} 9. Bd3 {[%clk 0:02:45.1]} 9... e6 {[%clk 0:02:39.9]} 10.
Nge2 {[%clk 0:02:44.3]} 10... Nh5 {[%clk 0:02:38.5]} 11. Be5 {[%clk 0:02:32.9]}
11... Nxe5 {[%clk 0:02:33]} 12. dxe5 {[%clk 0:02:31.6]} 12... g6 {[%clk
0:02:32.8]} 13. O-O {[%clk 0:02:24.2]} 13... Rc8 {[%clk 0:02:29.2]} 14. Nd4
{[%clk 0:02:20.3]} 14... Ng7 {[%clk 0:02:13.3]} 15. Nce2 {[%clk 0:02:13]} 15...
Bc5 {[%clk 0:02:06.1]} 16. a3 {[%clk 0:02:03.4]} 16... O-O {[%clk 0:02:05.5]}
17. Qd2 {[%clk 0:01:59.6]} 17... Kh8 {[%clk 0:01:56.2]} 18. b4 {[%clk
0:01:58.2]} 18... Ba7 {[%clk 0:01:55.5]} 19. Rxc8 {[%clk 0:01:56.8]} 19... Qxc8
{[%clk 0:01:55.8]} 20. Rc1 {[%clk 0:01:56.5]} 20... Qb8 {[%clk 0:01:55.8]} 21.
Kf2 {[%clk 0:01:47.3]} 21... Qxe5 {[%clk 0:01:51.9]} 22. f4 {[%clk 0:01:46.6]}
22... Qd6 {[%clk 0:01:50.3]} 23. Qc3 {[%clk 0:01:37.2]} 23... Bb6 {[%clk
0:01:31.9]} 24. Nb3 {[%clk 0:01:10.2]} 24... Kg8 {[%clk 0:01:30.3]} 25. Nc5
{[%clk 0:01:04.2]} 25... Bc6 {[%clk 0:01:11.7]} 26. g3 {[%clk 0:01:01.4]} 26...
Ra8 {[%clk 0:00:52]} 27. Nxa6 {[%clk 0:00:54.4]} 27... Nf5 {[%clk 0:00:22.9]}
28. Nc5 {[%clk 0:00:49.9]} 28... d4 {[%clk 0:00:16.9]} 29. Nxd4 {[%clk
0:00:48.6]} 29... Nxd4 {[%clk 0:00:16.9]} 30. Qxd4 {[%clk 0:00:47.4]} 30... Qxd4
{[%clk 0:00:17.3]} 31. exd4 {[%clk 0:00:47.5]} 31... Rxa3 {[%clk 0:00:17.1]} 32.
Be4 {[%clk 0:00:45.2]} 32... Bxc5 {[%clk 0:00:15.3]} 33. Bxc6 {[%clk 0:00:44.5]}
33... Bxd4+ {[%clk 0:00:15.7]} 34. Kg2 {[%clk 0:00:44.7]} 34... bxc6 {[%clk
0:00:16.3]} 35. Rxc6 {[%clk 0:00:43.9]} 35... Rb3 {[%clk 0:00:16.7]} 0-1

[Event "Late-Titled-Tuesday-Blitz-September-12-2023"]
[Site "Chess.com"]
[Date "2023.09.12"]
[Round "11"]
[White "chessdjw"]
[Black "Joshukid"]
[Result "0-1"]
[WhiteElo "2706"]
[BlackElo "2560"]
[TimeControl "180+1"]
[EndTime "16:00:00 PDT"]
[Termination "Joshukid won on time"]

1. e4 {[%clk 0:03:00.9]} 1... d5 {[%clk 0:02:37.7]} 2. exd5 {[%clk 0:02:59.2]}
2... Qxd5 {[%clk 0:02:38.6]} 3. Nc3 {[%clk 0:02:58.7]} 3... Qd6 {[%clk 0:02:36]}
4. d4 {[%clk 0:02:57.8]} 4... a6 {[%clk 0:02:36.5]} 5. Nf3 {[%clk 0:02:55.6]}
5... Nf6 {[%clk 0:02:37.1]} 6. Ne5 {[%clk 0:02:24.8]} 6... Nc6 {[%clk
0:02:32.8]} 7. Nxc6 {[%clk 0:00:03.2]} 7... Qxc6 {[%clk 0:02:31.7]} 8. d5 {[%clk
0:00:02.6]} 8... Qd7 {[%clk 0:02:30.2]} 9. Qf3 {[%clk 0:00:02.8]} 9... g6 {[%clk
0:02:29.3]} 10. Bg5 {[%clk 0:00:02.9]} 10... Bg7 {[%clk 0:02:28.8]} 11. O-O-O
{[%clk 0:00:03.6]} 11... O-O {[%clk 0:02:28.8]} 12. h4 {[%clk 0:00:03.9]} 12...
Qf5 {[%clk 0:02:26.3]} 13. Be2 {[%clk 0:00:04.1]} 13... Qxf3 {[%clk 0:02:26.6]}
14. Bxf3 {[%clk 0:00:05]} 14... Rb8 {[%clk 0:02:24.9]} 15. Rhe1 {[%clk
0:00:05.5]} 15... Re8 {[%clk 0:02:24.6]} 16. Bf4 {[%clk 0:00:05.9]} 16... Bf5
{[%clk 0:02:19.3]} 17. Bxc7 {[%clk 0:00:06.1]} 17... Rbc8 {[%clk 0:02:20.2]} 18.
d6 {[%clk 0:00:06.4]} 18... exd6 {[%clk 0:02:20.4]} 19. Rxe8+ {[%clk 0:00:06.9]}
19... Nxe8 {[%clk 0:02:20.1]} 20. Bb6 {[%clk 0:00:07.5]} 20... Bxc3 {[%clk
0:02:18.6]} 21. bxc3 {[%clk 0:00:08.4]} 21... Rxc3 {[%clk 0:02:18.9]} 22. Bd4
{[%clk 0:00:08.5]} 22... Rxc2+ {[%clk 0:02:19.2]} 23. Kb1 {[%clk 0:00:08.6]}
23... Rxf2+ {[%clk 0:02:12.1]} 24. Ka1 {[%clk 0:00:08.9]} 24... Rc2 {[%clk
0:02:04.8]} 25. h5 {[%clk 0:00:09.1]} 25... Be6 {[%clk 0:02:03.7]} 26. h6 {[%clk
0:00:09.1]} 26... Rxa2+ {[%clk 0:02:03.9]} 27. Kb1 {[%clk 0:00:09.7]} 27... Ra3
{[%clk 0:01:55.4]} 28. Rc1 {[%clk 0:00:09.5]} 28... Rb3+ {[%clk 0:01:53.6]} 29.
Ka1 {[%clk 0:00:10]} 29... Kf8 {[%clk 0:01:53.4]} 30. Bf2 {[%clk 0:00:09.6]}
30... a5 {[%clk 0:01:51.5]} 31. Bd1 {[%clk 0:00:09.3]} 31... Ra3+ {[%clk
0:01:50.2]} 32. Kb2 {[%clk 0:00:09.4]} 32... Ra2+ {[%clk 0:01:49]} 33. Kb1
{[%clk 0:00:09.3]} 33... Rxf2 {[%clk 0:01:49]} 34. Bf3 {[%clk 0:00:09.4]} 34...
b5 {[%clk 0:01:44]} 35. Rc2 {[%clk 0:00:08.8]} 35... Bf5 {[%clk 0:01:43.9]} 36.
Be4 {[%clk 0:00:07.9]} 36... Bxe4 {[%clk 0:01:43.3]} 37. g4 {[%clk 0:00:08.3]}
37... Rxc2 {[%clk 0:01:43.1]} 38. g5 {[%clk 0:00:08]} 38... a4 {[%clk
0:01:43.7]} 39. Ka1 {[%clk 0:00:07.5]} 39... b4 {[%clk 0:01:44.6]} 40. Kb1
{[%clk 0:00:08]} 40... b3 {[%clk 0:01:45.4]} 41. Ka1 {[%clk 0:00:08.7]} 41... a3
{[%clk 0:01:45.9]} 42. Kb1 {[%clk 0:00:09]} 42... Rc3+ {[%clk 0:01:05.8]} 0-1

[Event "Late-Titled-Tuesday-Blitz-September-12-2023"]
[Site "Chess.com"]
[Date "2023.09.12"]
[Round "11"]
[White "Mikhail_Golubev"]
[Black "Sinquefield"]
[Result "0-1"]
[WhiteElo "2589"]
[BlackElo "2477"]
[TimeControl "180+1"]
[EndTime "16:00:01 PDT"]
[Termination "Sinquefield won on time"]

1. e4 {[%clk 0:03:00.9]} 1... a6 {[%clk 0:02:59.1]} 2. d4 {[%clk 0:02:59.7]}
2... e6 {[%clk 0:02:57.4]} 3. Bd3 {[%clk 0:02:59.3]} 3... g6 {[%clk 0:02:57.3]}
4. Ne2 {[%clk 0:02:56.7]} 4... c6 {[%clk 0:02:57.3]} 5. O-O {[%clk 0:02:55.6]}
5... Ne7 {[%clk 0:02:56.8]} 6. e5 {[%clk 0:02:51.5]} 6... d6 {[%clk 0:02:56.5]}
7. exd6 {[%clk 0:02:49.6]} 7... Qxd6 {[%clk 0:02:56.2]} 8. Nd2 {[%clk
0:02:48.5]} 8... Bg7 {[%clk 0:02:56]} 9. Ne4 {[%clk 0:02:46.8]} 9... Qd8 {[%clk
0:02:54.9]} 10. Bg5 {[%clk 0:02:43]} 10... Nd7 {[%clk 0:02:54.9]} 11. Nd6+
{[%clk 0:02:40.7]} 11... Kf8 {[%clk 0:02:54.5]} 12. Qd2 {[%clk 0:02:32.3]} 12...
h6 {[%clk 0:02:51.6]} 13. Bf4 {[%clk 0:02:27.3]} 13... e5 {[%clk 0:02:29.5]} 14.
Bg3 {[%clk 0:02:17.4]} 14... exd4 {[%clk 0:02:27.7]} 15. Bc4 {[%clk 0:02:06.5]}
15... Nd5 {[%clk 0:02:05.9]} 16. Bxd5 {[%clk 0:01:11.3]} 16... cxd5 {[%clk
0:02:04.2]} 17. Nxd4 {[%clk 0:01:11]} 17... Ne5 {[%clk 0:02:00.3]} 18. Qb4
{[%clk 0:01:00.9]} 18... Kg8 {[%clk 0:01:50.2]} 19. Rfe1 {[%clk 0:00:59.7]}
19... a5 {[%clk 0:01:29.5]} 20. Qa3 {[%clk 0:00:57.4]} 20... Nc4 {[%clk
0:01:25.7]} 21. Nxc4 {[%clk 0:00:47.3]} 21... dxc4 {[%clk 0:01:23.4]} 22. Rad1
{[%clk 0:00:45.3]} 22... Qb6 {[%clk 0:00:47.7]} 23. Re7 {[%clk 0:00:36.4]} 23...
Bxd4 {[%clk 0:00:36.4]} 24. Bc7 {[%clk 0:00:16]} 24... Qf6 {[%clk 0:00:30.9]}
25. Re8+ {[%clk 0:00:06.2]} 25... Kh7 {[%clk 0:00:30.7]} 26. Rxh8+ {[%clk
0:00:06.1]} 26... Kxh8 {[%clk 0:00:31.6]} 27. Qf8+ {[%clk 0:00:04.7]} 27... Kh7
{[%clk 0:00:31.9]} 0-1

[Event "Late-Titled-Tuesday-Blitz-September-12-2023"]
[Site "Chess.com"]
[Date "2023.09.12"]
[Round "11"]
[White "Vadim_Biliy"]
[Black "GMJustin"]
[Result "1-0"]
[WhiteElo "2197"]
[BlackElo "2202"]
[TimeControl "180+1"]
[EndTime "16:00:08 PDT"]
[Termination "Vadim_Biliy won on time"]

1. d4 {[%clk 0:03:00.9]} 1... d5 {[%clk 0:02:52.4]} 2. Nf3 {[%clk 0:03:00.2]}
2... Nf6 {[%clk 0:02:50.4]} 3. e3 {[%clk 0:03:00.4]} 3... a6 {[%clk 0:02:30.7]}
4. c4 {[%clk 0:02:55.1]} 4... e6 {[%clk 0:02:28.8]} 5. Nc3 {[%clk 0:02:53.8]}
5... c5 {[%clk 0:01:59.8]} 6. cxd5 {[%clk 0:02:46.9]} 6... exd5 {[%clk
0:01:54.4]} 7. Be2 {[%clk 0:02:44.5]} 7... Nc6 {[%clk 0:01:53.7]} 8. O-O {[%clk
0:02:43.1]} 8... c4 {[%clk 0:01:48.5]} 9. a4 {[%clk 0:02:39]} 9... Bb4 {[%clk
0:01:44.5]} 10. Ne5 {[%clk 0:02:36.9]} 10... O-O {[%clk 0:01:21.4]} 11. Bf3
{[%clk 0:02:23.5]} 11... Re8 {[%clk 0:00:55.3]} 12. Nxc6 {[%clk 0:02:19.9]}
12... bxc6 {[%clk 0:00:55.3]} 13. Bd2 {[%clk 0:02:20.1]} 13... Bf5 {[%clk
0:00:46.7]} 14. b3 {[%clk 0:02:11.2]} 14... Bd3 {[%clk 0:00:37.5]} 15. Re1
{[%clk 0:02:10.6]} 15... Rb8 {[%clk 0:00:27.1]} 16. bxc4 {[%clk 0:02:06.5]}
16... Bxc4 {[%clk 0:00:27.4]} 17. Be2 {[%clk 0:02:01]} 17... Bxe2 {[%clk
0:00:19.5]} 18. Nxe2 {[%clk 0:02:00.3]} 18... Ne4 {[%clk 0:00:16.5]} 19. Bxb4
{[%clk 0:01:54.6]} 19... Rxb4 {[%clk 0:00:16.4]} 20. Qc2 {[%clk 0:01:53]} 20...
Qd6 {[%clk 0:00:12.5]} 21. Rec1 {[%clk 0:01:47.6]} 21... Rc4 {[%clk 0:00:12]}
22. Qd3 {[%clk 0:01:44.1]} 22... Rxc1+ {[%clk 0:00:09.4]} 23. Rxc1 {[%clk
0:01:39.8]} 23... a5 {[%clk 0:00:09.6]} 24. Ng3 {[%clk 0:01:34.9]} 24... Nxg3
{[%clk 0:00:08.7]} 25. hxg3 {[%clk 0:01:34.9]} 25... Rb8 {[%clk 0:00:08]} 26.
Qc3 {[%clk 0:01:31.7]} 26... g6 {[%clk 0:00:07.5]} 27. Qxc6 {[%clk 0:01:31.3]}
27... Qxc6 {[%clk 0:00:07.7]} 28. Rxc6 {[%clk 0:01:31.3]} 28... Rb4 {[%clk
0:00:07.3]} 29. Rc5 {[%clk 0:01:29.3]} 29... Rxa4 {[%clk 0:00:06.9]} 30. Rxd5
{[%clk 0:01:29.4]} 30... Ra1+ {[%clk 0:00:06.7]} 31. Kh2 {[%clk 0:01:28.9]}
31... a4 {[%clk 0:00:06.9]} 32. Ra5 {[%clk 0:01:27.4]} 32... a3 {[%clk
0:00:06.7]} 33. g4 {[%clk 0:01:27.2]} 33... a2 {[%clk 0:00:05.7]} 34. Kg3 {[%clk
0:01:26.6]} 34... Kf8 {[%clk 0:00:05.9]} 35. f3 {[%clk 0:01:13]} 35... Re1
{[%clk 0:00:04.6]} 36. Rxa2 {[%clk 0:01:12]} 36... Rxe3 {[%clk 0:00:04.9]} 37.
Kf4 {[%clk 0:01:08.6]} 37... Re1 {[%clk 0:00:04.8]} 38. Rd2 {[%clk 0:01:02.9]}
38... Ke7 {[%clk 0:00:04.2]} 39. d5 {[%clk 0:01:02.1]} 39... Kd6 {[%clk
0:00:03.7]} 40. Kg5 {[%clk 0:01:01.2]} 40... Rg1 {[%clk 0:00:01.4]} 41. Kf6
{[%clk 0:01:00.4]} 41... h5 {[%clk 0:00:01.2]} 42. g5 {[%clk 0:00:54.8]} 1-0

[Event "Late-Titled-Tuesday-Blitz-September-12-2023"]
[Site "Chess.com"]
[Date "2023.09.12"]
[Round "11"]
[White "McCarthyStone"]
[Black "Gyulamiryan-koryun"]
[Result "1-0"]
[WhiteElo "2481"]
[BlackElo "2008"]
[TimeControl "180+1"]
[EndTime "16:00:10 PDT"]
[Termination "McCarthyStone won by resignation"]

1. Nf3 {[%clk 0:02:59.9]} 1... Nf6 {[%clk 0:02:55.1]} 2. b3 {[%clk 0:02:59.6]}
2... g6 {[%clk 0:02:53.8]} 3. Bb2 {[%clk 0:03:00.4]} 3... Bg7 {[%clk 0:02:54.2]}
4. d4 {[%clk 0:02:59]} 4... O-O {[%clk 0:02:53.7]} 5. e3 {[%clk 0:02:59.4]} 5...
d6 {[%clk 0:02:52.9]} 6. c4 {[%clk 0:02:59.8]} 6... c5 {[%clk 0:02:44.9]} 7. Be2
{[%clk 0:02:59]} 7... Nc6 {[%clk 0:02:44.2]} 8. O-O {[%clk 0:02:56.9]} 8... Bf5
{[%clk 0:02:38.7]} 9. Nc3 {[%clk 0:02:56.2]} 9... Nb4 {[%clk 0:02:37.9]} 10. Rc1
{[%clk 0:02:44.2]} 10... Ne4 {[%clk 0:02:35.3]} 11. a3 {[%clk 0:02:43.8]} 11...
Nxc3 {[%clk 0:02:32.9]} 12. Bxc3 {[%clk 0:02:44.5]} 12... Na2 {[%clk 0:02:32.8]}
13. Qd2 {[%clk 0:02:25.1]} 13... Nxc1 {[%clk 0:02:31.9]} 14. Rxc1 {[%clk
0:02:26]} 14... cxd4 {[%clk 0:02:26.3]} 15. Nxd4 {[%clk 0:02:26.9]} 15... Bd7
{[%clk 0:02:22.8]} 16. h4 {[%clk 0:02:26.6]} 16... h5 {[%clk 0:02:18.5]} 17. Qb2
{[%clk 0:02:26.1]} 17... f6 {[%clk 0:02:17.5]} 18. Qc2 {[%clk 0:02:22.1]} 18...
e5 {[%clk 0:02:10.6]} 19. Nf3 {[%clk 0:02:14]} 19... Bf5 {[%clk 0:02:09.8]} 20.
Qd2 {[%clk 0:02:02.5]} 20... Qc7 {[%clk 0:01:59.1]} 21. Nh2 {[%clk 0:02:00.7]}
21... Rad8 {[%clk 0:01:57.1]} 22. Nf1 {[%clk 0:01:59.1]} 22... Qe7 {[%clk
0:01:51.4]} 23. Ng3 {[%clk 0:01:58.1]} 23... Bg4 {[%clk 0:01:49.3]} 24. Bf1
{[%clk 0:01:51.2]} 24... Bc8 {[%clk 0:01:44.8]} 25. Ne4 {[%clk 0:01:46.1]} 25...
Bf5 {[%clk 0:01:39.9]} 26. Bd3 {[%clk 0:01:46]} 26... Bxe4 {[%clk 0:01:39.2]}
27. Bxe4 {[%clk 0:01:46.8]} 27... f5 {[%clk 0:01:36]} 28. Bd5+ {[%clk
0:01:46.8]} 28... Kh7 {[%clk 0:01:35]} 29. g3 {[%clk 0:01:45.1]} 29... Bh6
{[%clk 0:01:32.9]} 30. Qe2 {[%clk 0:01:40.7]} 30... Qf6 {[%clk 0:01:20.6]} 31.
Rd1 {[%clk 0:01:36]} 31... Qe7 {[%clk 0:01:08.1]} 32. a4 {[%clk 0:01:33.8]}
32... Qe8 {[%clk 0:01:07.5]} 33. Qc2 {[%clk 0:01:26.8]} 33... e4 {[%clk
0:01:05.4]} 34. Bxb7 {[%clk 0:01:25.3]} 34... Rd7 {[%clk 0:00:57.8]} 35. Bc6
{[%clk 0:01:23.7]} 35... Rff7 {[%clk 0:00:53]} 36. Rxd6 {[%clk 0:01:20.8]} 36...
Qd8 {[%clk 0:00:39.6]} 37. Rxd7 {[%clk 0:01:16.6]} 37... Rxd7 {[%clk 0:00:39.4]}
38. Bxd7 {[%clk 0:01:16.8]} 38... Qxd7 {[%clk 0:00:39]} 39. Qd2 {[%clk
0:01:17.3]} 39... Qe7 {[%clk 0:00:37.1]} 40. Qd4 {[%clk 0:01:15.7]} 40... Bg7
{[%clk 0:00:36.6]} 41. Qxg7+ {[%clk 0:01:15.2]} 41... Qxg7 {[%clk 0:00:35.9]}
42. Bxg7 {[%clk 0:01:15.9]} 42... Kxg7 {[%clk 0:00:36.4]} 43. b4 {[%clk
0:01:15.8]} 43... Kf6 {[%clk 0:00:37.3]} 44. Kf1 {[%clk 0:01:15.9]} 44... Ke5
{[%clk 0:00:38.2]} 45. Ke2 {[%clk 0:01:16.2]} 45... Kd6 {[%clk 0:00:38.2]} 46.
Kd2 {[%clk 0:01:16.5]} 46... Kc6 {[%clk 0:00:37.8]} 47. Kc3 {[%clk 0:01:16.4]}
47... a6 {[%clk 0:00:37.1]} 48. Kd4 {[%clk 0:01:16.4]} 48... Kd6 {[%clk
0:00:36.9]} 49. b5 {[%clk 0:01:15.9]} 49... axb5 {[%clk 0:00:35.1]} 50. cxb5
{[%clk 0:01:15.1]} 50... Ke6 {[%clk 0:00:31.8]} 51. a5 {[%clk 0:01:14.8]} 51...
Kd6 {[%clk 0:00:32.1]} 52. a6 {[%clk 0:01:13.4]} 52... Kc7 {[%clk 0:00:32]} 53.
Ke5 {[%clk 0:01:13.4]} 53... Kb6 {[%clk 0:00:32.4]} 54. Kf6 {[%clk 0:01:12.2]}
54... Kxb5 {[%clk 0:00:33.3]} 55. a7 {[%clk 0:01:11.3]} 55... Ka6 {[%clk
0:00:34.2]} 56. a8=Q+ {[%clk 0:01:10.5]} 56... Kb5 {[%clk 0:00:35.1]} 57. Qc8
{[%clk 0:01:09.9]} 1-0

[Event "Late-Titled-Tuesday-Blitz-September-12-2023"]
[Site "Chess.com"]
[Date "2023.09.12"]
[Round "11"]
[White "CuteSheepCloud"]
[Black "Defenstrator"]
[Result "1-0"]
[WhiteElo "2637"]
[BlackElo "2354"]
[TimeControl "180+1"]
[EndTime "16:00:12 PDT"]
[Termination "CuteSheepCloud won by resignation"]

1. e4 {[%clk 0:03:00.9]} 1... c5 {[%clk 0:02:51.9]} 2. Nc3 {[%clk 0:02:57.4]}
2... a6 {[%clk 0:02:47.2]} 3. a4 {[%clk 0:02:57.2]} 3... Nc6 {[%clk 0:02:40.9]}
4. Nge2 {[%clk 0:02:56.1]} 4... g6 {[%clk 0:02:33.8]} 5. d4 {[%clk 0:02:55.1]}
5... cxd4 {[%clk 0:02:33.8]} 6. Nxd4 {[%clk 0:02:56]} 6... Bg7 {[%clk
0:02:32.8]} 7. Be3 {[%clk 0:02:55.9]} 7... Nf6 {[%clk 0:02:25.1]} 8. Nxc6 {[%clk
0:02:53.9]} 8... bxc6 {[%clk 0:02:19.4]} 9. e5 {[%clk 0:02:53.6]} 9... Nd5
{[%clk 0:02:12.9]} 10. Nxd5 {[%clk 0:02:50.7]} 10... cxd5 {[%clk 0:02:13.1]} 11.
Qxd5 {[%clk 0:02:51.6]} 11... Rb8 {[%clk 0:02:12.6]} 12. O-O-O {[%clk
0:02:50.6]} 12... d6 {[%clk 0:01:43]} 13. Bxa6 {[%clk 0:02:27.8]} 13... Bxa6
{[%clk 0:00:59.2]} 14. Qc6+ {[%clk 0:02:27.3]} 14... Qd7 {[%clk 0:00:59.9]} 15.
Qxa6 {[%clk 0:02:27.5]} 15... Bxe5 {[%clk 0:01:00.3]} 16. Bd4 {[%clk 0:02:26]}
16... Bxd4 {[%clk 0:00:55.7]} 17. Rxd4 {[%clk 0:02:26.5]} 17... O-O {[%clk
0:00:56.5]} 18. h4 {[%clk 0:02:20.5]} 18... Ra8 {[%clk 0:00:43.4]} 19. Qc4
{[%clk 0:02:18]} 19... Rfc8 {[%clk 0:00:41]} 20. Qb3 {[%clk 0:02:14.5]} 20...
Rcb8 {[%clk 0:00:34.4]} 21. Qa3 {[%clk 0:02:09.2]} 21... Qf5 {[%clk 0:00:27.3]}
22. f3 {[%clk 0:02:01.3]} 22... Qe5 {[%clk 0:00:26.3]} 23. Re4 {[%clk
0:01:59.8]} 23... Qf6 {[%clk 0:00:17.8]} 24. b3 {[%clk 0:01:56.4]} 24... Ra5
{[%clk 0:00:15.7]} 25. Qb2 {[%clk 0:01:56.4]} 25... e5 {[%clk 0:00:13.4]} 26. h5
{[%clk 0:01:54.4]} 26... Re8 {[%clk 0:00:07]} 27. hxg6 {[%clk 0:01:54.2]} 27...
hxg6 {[%clk 0:00:07.9]} 28. Qc3 {[%clk 0:01:54]} 28... Rc5 {[%clk 0:00:07.6]}
29. Qd2 {[%clk 0:01:53.5]} 29... Rec8 {[%clk 0:00:08.5]} 30. Reh4 {[%clk
0:01:51.5]} 30... Rxc2+ {[%clk 0:00:08.2]} 31. Qxc2 {[%clk 0:01:52.1]} 31...
Rxc2+ {[%clk 0:00:09.1]} 32. Kxc2 {[%clk 0:01:53]} 32... Qf5+ {[%clk 0:00:09.5]}
33. Kb2 {[%clk 0:01:52.3]} 33... Qd3 {[%clk 0:00:08.4]} 34. Rc4 {[%clk
0:01:52.1]} 34... d5 {[%clk 0:00:07.1]} 35. Rc2 {[%clk 0:01:51]} 35... e4 {[%clk
0:00:06.3]} 36. fxe4 {[%clk 0:01:50.6]} 36... dxe4 {[%clk 0:00:07.2]} 37. Re1
{[%clk 0:01:50.1]} 37... f5 {[%clk 0:00:06.7]} 38. Ree2 {[%clk 0:01:50.5]} 38...
f4 {[%clk 0:00:06.6]} 39. a5 {[%clk 0:01:50.5]} 39... f3 {[%clk 0:00:05]} 40.
gxf3 {[%clk 0:01:50.2]} 40... exf3 {[%clk 0:00:05.9]} 41. Rf2 {[%clk 0:01:50.8]}
41... g5 {[%clk 0:00:05.1]} 42. Rc3 {[%clk 0:01:46.4]} 42... Qd5 {[%clk
0:00:02.5]} 43. Rcxf3 {[%clk 0:01:43.1]} 43... Qxa5 {[%clk 0:00:03.1]} 44. Rf5
{[%clk 0:01:43.5]} 44... Qd8 {[%clk 0:00:02.8]} 45. b4 {[%clk 0:01:41.2]} 45...
Qd4+ {[%clk 0:00:03.5]} 46. Kb3 {[%clk 0:01:41]} 46... Qd3+ {[%clk 0:00:03.6]}
47. Ka4 {[%clk 0:01:41.7]} 47... Qa6+ {[%clk 0:00:04.5]} 48. Ra5 {[%clk
0:01:35.2]} 48... Qc6+ {[%clk 0:00:05.1]} 49. Kb3 {[%clk 0:01:35.6]} 49... Qe6+
{[%clk 0:00:05.6]} 50. Kb2 {[%clk 0:01:33.7]} 50... g4 {[%clk 0:00:04.4]} 51.
Rg5+ {[%clk 0:01:33.5]} 51... Kh7 {[%clk 0:00:04.4]} 52. Rh2+ {[%clk 0:01:33.7]}
1-0